Workbook

Sheet TAB. 1 INATTIVI
A1: Tab.1 - Immatricolati all'a.a. 2010-11, di cui iscritti al 2° anno nell'a.a. 2011-12, allo stesso corso di studi, di cui inattivi ed attivi per classi di CFU conseguiti e tassi di inattività.
A2: Tipo CDS | B2: Normativa di riferimento | C2: CORSO DI STUDIO | D2: Immatricolati nell'a.a. 2010-11 | E2: di cui Iscritti al 2° anno nell'a.a. 2011-12 allo stesso CDS | F2: di cui Iscritti al 2° anno inattivi (0 CFU) | G2: Tasso di inattività (0 CFU) (%) | H2: di cui Iscritti al 2° anno con 1-4 CFU | I2: di cui Iscritti al 2° anno con 5-9 CFU | J2: di cui Iscritti al 2° anno con 10-14 CFU | K2: di cui Iscritti al 2° anno con 15-19 CFU | L2: di cui Iscritti al 2° anno con oltre 20 CFU
A3: AGRARIA
A4: Triennale | B4: D.M. 270/04 | C4: BENI ENOGASTRONOMICI (D.M.270/04) | D4: 76 | E4: 37 | F4: 1 | G4: =F4/E4*100 -> 2.702702703 | H4: 0 | I4: 0 | J4: 2 | K4: 1 | L4: 33
A5: Triennale | B5: D.M. 270/04 | C5: SCIENZE E TECNOLOGIE AGRARIE (D.M.270/04) | D5: 119 | E5: 73 | F5: 2 | G5: =F5/E5*100 -> 2.739726027 | H5: 0 | I5: 5 | J5: 0 | K5: 16 | L5: 50
A6: Triennale | B6: D.M. 270/04 | C6: SCIENZE E TECNOLOGIE ALIMENTARI (D.M.270/04) | D6: 239 | E6: 113 | F6: 0 | G6: 0 | H6: 1 | I6: 18 | J6: 7 | K6: 12 | L6: 75
A7: Triennale | B7: D.M. 270/04 | C7: SCIENZE FORESTALI E AMBIENTALI (D.M.270/04) | D7: 54 | E7: 30 | F7: 3 | G7: 10 | H7: 0 | I7: 1 | J7: 0 | K7: 2 | L7: 24
C8: TOTALE AGRARIA | D8: =SUM(D4:D7) -> 488 | E8: =SUM(E4:E7) -> 253 | F8: 6 | G8: 2.371541502 | H8: 1 | I8: 24 | J8: 9 | K8: 31 | L8: 182
A10: ECONOMIA
A11: Triennale | B11: D.M. 270/04 | C11: ECONOMIA AZIENDALE (D.M.270/04) | D11: =458+3 -> 461 | E11: 288 | F11: 9 | G11: =F11/E11*100 -> 3.125 | H11: 0 | I11: 0 | J11: 21 | K11: 0 | L11: 258
A12: Triennale | B12: D.M. 270/04 | C12: ECONOMIA AZIENDALE (D.M.270/04) (BRINDISI) | D12: 113 | E12: 53 | F12: 4 | G12: 7.547169811 | H12: 0 | I12: 0 | J12: 4 | K12: 0 | L12: 45
A13: Triennale | B13: D.M. 270/04 | C13: ECONOMIA E COMMERCIO (D.M.270/04) | D13: 551 | E13: 372 | F13: 15 | G13: 4.032258065 | H13: 0 | I13: 0 | J13: 15 | K13: 0 | L13: 342
A14: Triennale | B14: D.M. 270/04 | C14: MARKETING E COMUNICAZIONE D'AZIENDA (D.M.270/04) | D14: 347 | E14: 209 | F14: 5 | G14: 2.392344498 | H14: 0 | I14: 0 | J14: 7 | K14: 0 | L14: 197
A15: Triennale | B15: D.M. 270/04 | C15: SCIENZE STATISTICHE (D.M.270/04) | D15: 17 | E15: 9 | F15: 0 | G15: 0 | H15: 0 | I15: 0 | J15: 1 | K15: 0 | L15: 8
C16: TOTALE ECONOMIA | D16: =SUM(D11:D15) -> 1489 | E16: =SUM(E11:E15) -> 931 | F16: 33 | G16: 3.544575725 | H16: 0 | I16: 0 | J16: 48 | K16: 0 | L16: 850
A18: FARMACIA
A19: Triennale | B19: D.M. 270/04 | C19: TECNICHE ERBORISTICHE (D.M.270/04) | D19: 105 | E19: 46 | F19: 9 | G19: =F19/E19*100 -> 19.56521739 | H19: 0 | I19: 0 | J19: 2 | K19: 3 | L19: 32
A20: Magistrale a ciclo unico | B20: D.M. 270/04 | C20: CHIMICA E TECNOLOGIA FARMACEUTICHE (D.M.270/04) | D20: 100 | E20: 60 | F20: 2 | G20: 3.333333333 | H20: 1 | I20: 0 | J20: 0 | K20: 0 | L20: 57
A21: Magistrale a ciclo unico | B21: D.M. 270/04 | C21: FARMACIA (D.M.270/04) | D21: 321 | E21: 229 | F21: 5 | G21: 2.183406114 | H21: 2 | I21: 1 | J21: 13 | K21: 2 | L21: 206
C22: TOTALE FARMACIA | D22: =SUM(D19:D21) -> 526 | E22: =SUM(E19:E21) -> 335 | F22: 16 | G22: 4.776119403 | H22: 3 | I22: 1 | J22: 15 | K22: 5 | L22: 295
A24: GIURISPRUDENZA
A25: Triennale | B25: D.M. 270/04 | C25: SCIENZE DEI SERVIZI GIURIDICI (D.M.270/04) | D25: 151 | E25: 69 | F25: 2 | G25: =F25/E25*100 -> 2.898550725 | H25: 1 | I25: 2 | J25: 1 | K25: 6 | L25: 57
A26: Triennale | B26: D.M. 270/04 | C26: SCIENZE DEI SERVIZI GIURIDICI D'IMPRESA (D.M.270/04) | D26: 80 | E26: 37 | F26: 1 | G26: 2.702702703 | H26: 0 | I26: 3 | J26: 3 | K26: 1 | L26: 29
A27: Magistrale a ciclo unico | B27: D.M. 270/04 | C27: GIURISPRUDENZA | D27: 1107 | E27: 803 | F27: 20 | G27: 2.490660025 | H27: 4 | I27: 14 | J27: 10 | K27: 29 | L27: 726
A28: Magistrale a ciclo unico | B28: D.M. 270/04 | C28: GIURISPRUDENZA (già Giurisprudenza d'impresa) | D28: 128 | E28: 87 | F28: 2 | G28: 2.298850575 | H28: 0 | I28: 3 | J28: 0 | K28: 0 | L28: 82
C29: TOTALE GIURISPRUDENZA | D29: =SUM(D25:D28) -> 1466 | E29: =SUM(E25:E28) -> 996 | F29: 25 | G29: 2.510040161 | H29: 5 | I29: 22 | J29: 14 | K29: 36 | L29: 894
A31: LETTERE E FILOSOFIA
A32: Triennale | B32: D.M. 270/04 | C32: FILOSOFIA (D.M.270/04) | D32: 101 | E32: 67 | F32: 1 | G32: =F32/E32*100 -> 1.492537313 | H32: 1 | I32: 2 | J32: 1 | K32: 3 | L32: 59
A33: Triennale | B33: D.M. 270/04 | C33: LETTERE (D.M.270/04) | D33: 344 | E33: 252 | F33: 5 | G33: 1.984126984 | H33: 2 | I33: 5 | J33: 3 | K33: 7 | L33: 230
A34: Triennale | B34: D.M. 270/04 | C34: SCIENZE DEI BENI CULTURALI (D.M.270/04) | D34: 138 | E34: 83 | F34: 7 | G34: 8.43373494 | H34: 3 | I34: 7 | J34: 4 | K34: 4 | L34: 58
A35: Triennale | B35: D.M. 270/04 | C35: SCIENZE DEI BENI CULTURALI PER IL TURISMO (D.M. 270/04) | D35: 46 | E35: 24 | F35: 1 | G35: 4.166666667 | H35: 0 | I35: 1 | J35: 1 | K35: 0 | L35: 21
A36: Triennale | B36: D.M. 270/04 | C36: STORIA E SCIENZE SOCIALI (D.M.270/04) | D36: 53 | E36: 27 | F36: 1 | G36: 3.703703704 | H36: 0 | I36: 4 | J36: 1 | K36: 0 | L36: 21
C37: TOTALE LETTERE E FILOSOFIA | D37: =SUM(D32:D36) -> 682 | E37: =SUM(E32:E36) -> 453 | F37: 15 | G37: 3.311258278 | H37: 6 | I37: 19 | J37: 10 | K37: 14 | L37: 389
A39: LINGUE E LETTERATURE STRANIERE
A40: Triennale | B40: D.M. 270/04 | C40: COMUNICAZIONE LINGUISTICA E INTERCULTURALE (D.M.270/04) | D40: 389 | E40: 288 | F40: 6 | G40: =F40/E40*100 -> 2.083333333 | H40: 0 | I40: 12 | J40: 13 | K40: 0 | L40: 257
A41: Triennale | B41: D.M. 270/04 | C41: CULTURE DELLE LINGUE MODERNE E DEL TURISMO (D.M.270/04) | D41: 496 | E41: 327 | F41: 10 | G41: 3.058103976 | H41: 0 | I41: 13 | J41: 1 | K41: 23 | L41: 280
C42: TOTALE LINGUE E LETTERATURE STRANIERE | D42: =SUM(D40:D41) -> 885 | E42: =SUM(E40:E41) -> 615 | F42: 16 | G42: 2.601626016 | H42: 0 | I42: 25 | J42: 14 | K42: 23 | L42: 537
A44: MEDICINA E CHIRURGIA
A45: Triennale | B45: D.M. 509/99 | C45: ASSISTENZA SANITARIA | D45: 20 | E45: 15 | F45: 0 | G45: =F45/E45*100 -> 0 | H45: 0 | I45: 1 | J45: 0 | K45: 0 | L45: 14
A46: Triennale | B46: D.M. 509/99 | C46: DIETISTICA | D46: 17 | E46: 14 | F46: 1 | G46: 7.142857143 | H46: 0 | I46: 1 | J46: 0 | K46: 0 | L46: 12
A47: Triennale | B47: D.M. 509/99 | C47: EDUCAZIONE PROFESSIONALE | D47: 38 | E47: 27 | F47: 1 | G47: 3.703703704 | H47: 0 | I47: 0 | J47: 1 | K47: 0 | L47: 25
A48: Triennale | B48: D.M. 509/99 | C48: FISIOTERAPIA | D48: 115 | E48: 101 | F48: 2 | G48: 1.98019802 | H48: 0 | I48: 0 | J48: 1 | K48: 0 | L48: 98
A49: Triennale | B49: D.M. 509/99 | C49: IGIENE DENTALE | D49: 24 | E49: 22 | F49: 0 | G49: 0 | H49: 0 | I49: 0 | J49: 0 | K49: 0 | L49: 22
A50: Triennale | B50: D.M. 509/99 | C50: INFERMIERISTICA | D50: 565 | E50: 509 | F50: 6 | G50: 1.178781925 | H50: 1 | I50: 6 | J50: 3 | K50: 4 | L50: 489
A51: Triennale | B51: D.M. 509/99 | C51: LOGOPEDIA | D51: 17 | E51: 15 | F51: 0 | G51: 0 | H51: 0 | I51: 0 | J51: 0 | K51: 0 | L51: 15
A52: Triennale | B52: D.M. 509/99 | C52: ORTOTTICA ED ASSISTENZA OFTALMOLOGICA | D52: 10 | E52: 8 | F52: 0 | G52: 0 | H52: 0 | I52: 0 | J52: 0 | K52: 0 | L52: 8
A53: Triennale | B53: D.M. 509/99 | C53: OSTETRICIA | D53: 22 | E53: 22 | F53: 0 | G53: 0 | H53: 0 | I53: 0 | J53: 0 | K53: 0 | L53: 22
A54: Triennale | B54: D.M. 509/99 | C54: TECNICHE AUDIOMETRICHE | D54: 19 | E54: 15 | F54: 0 | G54: 0 | H54: 0 | I54: 0 | J54: 1 | K54: 0 | L54: 14
A55: Triennale | B55: D.M. 509/99 | C55: TECNICHE AUDIOPROTESICHE | D55: 20 | E55: 19 | F55: 0 | G55: 0 | H55: 0 | I55: 0 | J55: 0 | K55: 1 | L55: 18
A56: Triennale | B56: D.M. 509/99 | C56: TECNICHE DELLA PREV.NELL'AMBIENTE E NEI LUOGHI DI LAVORO | D56: 63 | E56: 55 | F56: 0 | G56: 0 | H56: 0 | I56: 1 | J56: 0 | K56: 1 | L56: 53
A57: Triennale | B57: D.M. 509/99 | C57: TECNICHE DELLA RIABILITAZIONE PSICHIATRICA | D57: 39 | E57: 37 | F57: 2 | G57: 5.405405405 | H57: 0 | I57: 0 | J57: 0 | K57: 0 | L57: 35
A58: Triennale | B58: D.M. 509/99 | C58: TECNICHE DI FISIOPATOL.CARDIOCIRCOL.E PERFUSIONE CARDIOVASCOLARE | D58: 15 | E58: 12 | F58: 1 | G58: 8.333333333 | H58: 0 | I58: 3 | J58: 0 | K58: 0 | L58: 8
A59: Triennale | B59: D.M. 509/99 | C59: TECNICHE DI LABORATORIO BIOMEDICO | D59: 24 | E59: 18 | F59: 0 | G59: 0 | H59: 0 | I59: 0 | J59: 0 | K59: 0 | L59: 18
A60: Triennale | B60: D.M. 509/99 | C60: TECNICHE DI NEUROFISIOPATOLOGIA | D60: 10 | E60: 9 | F60: 0 | G60: 0 | H60: 0 | I60: 1 | J60: 0 | K60: 0 | L60: 8
A61: Triennale | B61: D.M. 509/99 | C61: TECNICHE DI RADIOLOGIA MEDICA,PER IMMAGINI E RADIOTERAPIA | D61: 28 | E61: 25 | F61: 0 | G61: 0 | H61: 0 | I61: 0 | J61: 0 | K61: 0 | L61: 25
A62: Triennale | B62: D.M. 270/04 | C62: SCIENZE DELLE ATTIVITA' MOTORIE E SPORTIVE (D.M.270/04) | D62: 46 | E62: 31 | F62: 0 | G62: 0 | H62: 1 | I62: 0 | J62: 1 | K62: 0 | L62: 29
A63: Magistrale a ciclo unico | B63: D.M. 270/04 | C63: MEDICINA E CHIRURGIA (D.M.270/04) | D63: 305 | E63: 284 | F63: 0 | G63: 0 | H63: 1 | I63: 2 | J63: 2 | K63: 3 | L63: 276
A64: Magistrale a ciclo unico | B64: D.M. 270/04 | C64: ODONTOIATRIA E PROTESI DENTARIA (D.M.270/04) | D64: 21 | E64: 18 | F64: 1 | G64: 5.555555556 | H64: 0 | I64: 0 | J64: 0 | K64: 1 | L64: 16
C65: TOTALE MEDICINA E CHIRURGIA | D65: =SUM(D45:D64) -> 1418 | E65: =SUM(E45:E64) -> 1256 | F65: =SUM(F45:F64) -> 14 | G65: 1.114649682 | H65: =SUM(H45:H64) -> 3 | I65: =SUM(I45:I64) -> 15 | J65: =SUM(J45:J64) -> 9 | K65: =SUM(K45:K64) -> 10 | L65: =SUM(L45:L64) -> 1205
A67: MEDICINA VETERINARIA
A68: Triennale | B68: D.M. 270/04 | C68: SCIENZE ANIMALI E PRODUZIONI ALIMENTARI (D.M.270/04) | D68: 108 | E68: 67 | F68: 5 | G68: =F68/E68*100 -> 7.462686567 | H68: 0 | I68: 8 | J68: 2 | K68: 3 | L68: 49
A69: Magistrale a ciclo unico | B69: D.M. 270/04 | C69: MEDICINA VETERINARIA (D.M.270/04) | D69: 81 | E69: 64 | F69: 1 | G69: 1.5625 | H69: 1 | I69: 0 | J69: 1 | K69: 2 | L69: 59
C70: TOTALE MEDICINA VETERINARIA | D70: =SUM(D68:D69) -> 189 | E70: =SUM(E68:E69) -> 131 | F70: 6 | G70: 4.580152672 | H70: 1 | I70: 8 | J70: 3 | K70: 5 | L70: 108
A72: SCIENZE BIOTECNOLOGICHE
A73: Triennale | B73: D.M. 270/04 | C73: BIOTECNOLOGIE MEDICHE E FARMACEUTICHE (D.M.270/04) | D73: 74 | E73: 30 | F73: 0 | G73: =F73/E73*100 -> 0 | H73: 0 | I73: 0 | J73: 1 | K73: 0 | L73: 29
A74: Triennale | B74: D.M. 270/04 | C74: BIOTECNOLOGIE PER L'INNOVAZIONE DI PROCESSI E DI PRODOTTI (D.M.270/04) | D74: 95 | E74: 43 | F74: 3 | G74: 6.976744186 | H74: 0 | I74: 3 | J74: 7 | K74: 0 | L74: 30
C75: TOTALE SCIENZE BIOTECNOLOGICHE | D75: =SUM(D73:D74) -> 169 | E75: =SUM(E73:E74) -> 73 | F75: 3 | G75: 4.109589041 | H75: 0 | I75: 3 | J75: 8 | K75: 0 | L75: 59
A77: SCIENZE DELLA FORMAZIONE (manca Scienze della formazione primaria)
A78: Triennale | B78: D.M. 270/04 | C78: SCIENZE DELLA COMUNICAZIONE (D.M.270/04) | D78: 336 | E78: 191 | F78: 7 | G78: =F78/E78*100 -> 3.664921466 | H78: 1 | I78: 9 | J78: 2 | K78: 5 | L78: 167
A79: Triennale | B79: D.M. 270/04 | C79: SCIENZE DELLA COMUNICAZIONE NELLE ORGANIZZAZIONI (D.M.270/04) - TARANTO | D79: 79 | E79: 37 | F79: 1 | G79: 2.702702703 | H79: 0 | I79: 0 | J79: 0 | K79: 2 | L79: 34
A80: Triennale | B80: D.M. 270/04 | C80: SCIENZE DELLA FORMAZIONE (D.M.270/04) | D80: 244 | E80: 126 | F80: 6 | G80: 4.761904762 | H80: 0 | I80: 3 | J80: 5 | K80: 4 | L80: 108
A81: Triennale | B81: D.M. 270/04 | C81: SCIENZE DELL'EDUCAZIONE (D.M.270/04) | D81: 434 | E81: 318 | F81: 2 | G81: 0.6289308176 | H81: 0 | I81: 0 | J81: 11 | K81: 1 | L81: 304
A82: Triennale | B82: D.M. 270/04 | C82: SCIENZE DELL'EDUCAZIONE E DELL'ANIMAZIONE SOCIO CULTURALE (D.M.270/04) | D82: 91 | E82: 57 | F82: 2 | G82: 3.50877193 | H82: 0 | I82: 0 | J82: 1 | K82: 0 | L82: 54
A83: Triennale | B83: D.M. 270/04 | C83: SCIENZE E TECNICHE PSICOLOGICHE (D.M.270/04) | D83: 243 | E83: 201 | F83: 3 | G83: 1.492537313 | H83: 0 | I83: 2 | J83: 2 | K83: 0 | L83: 194
C84: TOTALE SCIENZE DELLA FORMAZIONE | D84: =SUM(D78:D83) -> 1427 | E84: =SUM(E78:E83) -> 930 | F84: 21 | G84: 2.258064516 | H84: 1 | I84: 14 | J84: 21 | K84: 12 | L84: 861
A86: SCIENZE MM.FF.NN.
A87: Triennale | B87: D.M. 270/04 | C87: CHIMICA (D.M.270/04) | D87: 167 | E87: 57 | F87: 11 | G87: =F87/E87*100 -> 19.29824561 | H87: 1 | I87: 10 | J87: 6 | K87: 2 | L87: 27
A88: Triennale | B88: D.M. 270/04 | C88: FISICA (D.M.270/04) | D88: 72 | E88: 50 | F88: 0 | G88: 0 | H88: 1 | I88: 0 | J88: 3 | K88: 0 | L88: 46
A89: Triennale | B89: D.M. 270/04 | C89: INFORMATICA (D.M.270/04) | D89: 130 | E89: 74 | F89: 3 | G89: 4.054054054 | H89: 0 | I89: 2 | J89: 1 | K89: 2 | L89: 66
A90: Triennale | B90: D.M. 270/04 | C90: INFORMATICA (D.M.270/04) - BRINDISI | D90: 55 | E90: 22 | F90: 1 | G90: 4.545454545 | H90: 0 | I90: 8 | J90: 0 | K90: 2 | L90: 11
A91: Triennale | B91: D.M. 270/04 | C91: INFORMATICA E COMUNICAZIONE DIGITALE (D.M.270/04) | D91: 113 | E91: 60 | F91: 2 | G91: 3.333333333 | H91: 0 | I91: 5 | J91: 3 | K91: 1 | L91: 49
A92: Triennale | B92: D.M. 270/04 | C92: INFORMATICA E TECNOLOGIE PER LA PRODUZIONE DEL SOFTWARE (D.M.270/04) | D92: 101 | E92: 61 | F92: 6 | G92: 9.836065574 | H92: 0 | I92: 4 | J92: 0 | K92: 4 | L92: 47
A93: Triennale | B93: D.M. 270/04 | C93: MATEMATICA (D.M.270/04) | D93: 104 | E93: 50 | F93: 5 | G93: 10 | H93: 2 | I93: 7 | J93: 1 | K93: 2 | L93: 33
A94: Triennale | B94: D.M. 270/04 | C94: SCIENZA DEI MATERIALI (D.M.270/04) | D94: 53 | E94: 31 | F94: 2 | G94: 6.451612903 | H94: 3 | I94: 0 | J94: 1 | K94: 9 | L94: 16
A95: Triennale | B95: D.M. 270/04 | C95: SCIENZE BIOLOGICHE (D.M.270/04) | D95: 218 | E95: 131 | F95: 8 | G95: 6.106870229 | H95: 3 | I95: 6 | J95: 4 | K95: 3 | L95: 107
A96: Triennale | B96: D.M. 270/04 | C96: SCIENZE DELLA NATURA (D.M.270/04) | D96: 79 | E96: 25 | F96: 2 | G96: 8 | H96: 0 | I96: 1 | J96: 0 | K96: 1 | L96: 21
A97: Triennale | B97: D.M. 270/04 | C97: SCIENZE E TECNOLOGIE PER I BENI CULTURALI (D.M.270/04) | D97: 16 | E97: 12 | F97: 0 | G97: 0 | H97: 0 | I97: 1 | J97: 0 | K97: 0 | L97: 11
A98: Triennale | B98: D.M. 270/04 | C98: SCIENZE GEOLOGICHE (D.M.270/04) | D98: 55 | E98: 32 | F98: 2 | G98: 6.25 | H98: 0 | I98: 0 | J98: 0 | K98: 3 | L98: 27
C99: TOTALE SCIENZE MM.FF.NN. | D99: =SUM(D87:D98) -> 1163 | E99: =SUM(E87:E98) -> 605 | F99: 42 | G99: 6.94214876 | H99: 10 | I99: 44 | J99: 19 | K99: 29 | L99: 461
A101: SCIENZE POLITICHE
A102: Triennale | B102: D.M. 270/04 | C102: SCIENZE DEL SERVIZIO SOCIALE (D.M.270/04) | D102: 411 | E102: 261 | F102: 19 | G102: =F102/E102*100 -> 7.279693487 | H102: 0 | I102: 9 | J102: 8 | K102: 7 | L102: 218
A103: Triennale | B103: D.M. 270/04 | C103: SCIENZE DELLA AMMINISTRAZIONE PUBBLICA E PRIVATA (D.M.270/04) | D103: 202 | E103: 99 | F103: 6 | G103: 6.060606061 | H103: 2 | I103: 1 | J103: 1 | K103: 9 | L103: 80
A104: Triennale | B104: D.M. 270/04 | C104: SCIENZE POLITICHE RELAZIONI INTERNAZIONALI E STUDI EUROPEI (D.M.270/04) | D104: 140 | E104: 66 | F104: 3 | G104: 4.545454545 | H104: 2 | I104: 4 | J104: 1 | K104: 2 | L104: 54
C105: TOTALE SCIENZE POLITICHE | D105: =SUM(D102:D104) -> 753 | E105: =SUM(E102:E104) -> 426 | F105: 28 | G105: 6.572769953 | H105: 4 | I105: 14 | J105: 10 | K105: 18 | L105: 352
A107: ECONOMIA TARANTO
A108: Triennale | B108: D.M. 270/04 | C108: ECONOMIA E AMMINISTRAZIONE DELLE AZIENDE (D.M.270/04) | D108: 334 | E108: 157 | F108: 3 | G108: =F108/E108*100 -> 1.910828025 | H108: 0 | I108: 1 | J108: 19 | K108: 7 | L108: 127
C109: TOTALE ECONOMIA - TARANTO | D109: =SUM(D108) -> 334 | E109: =SUM(E108) -> 157 | F109: 3 | G109: 1.910828025 | H109: 0 | I109: 1 | J109: 19 | K109: 7 | L109: 127
A111: GIURISPRUDENZA TARANTO
A112: Triennale | B112: D.M. 270/04 | C112: OPERATORE DEI SERVIZI GIURIDICI (D.M.270/04) - TARANTO | D112: 105 | E112: 41 | F112: 1 | G112: =F112/E112*100 -> 2.43902439 | H112: 0 | I112: 1 | J112: 2 | K112: 2 | L112: 35
A113: Magistrale a ciclo unico | B113: D.M. 270/04 | C113: GIURISPRUDENZA (TARANTO) | D113: 326 | E113: 204 | F113: 5 | G113: 2.450980392 | H113: 4 | I113: 2 | J113: 8 | K113: 5 | L113: 180
C114: TOTALE GIURISPRUDENZA - TARANTO | D114: =SUM(D112:D113) -> 431 | E114: =SUM(E112:E113) -> 245 | F114: 6 | G114: 2.448979592 | H114: 4 | I114: 3 | J114: 10 | K114: 7 | L114: 215
A116: SCIENZE MM.FF.NN. TARANTO
A117: Triennale | B117: D.M. 270/04 | C117: INFORMATICA E COMUNICAZIONE DIGITALE (D.M.270/04) - TARANTO | D117: 89 | E117: 36 | F117: 1 | G117: =F117/E117*100 -> 2.777777778 | H117: 0 | I117: 2 | J117: 1 | K117: 0 | L117: 32
A118: Triennale | B118: D.M. 270/04 | C118: SCIENZE AMBIENTALI (D.M.270/04) | D118: 42 | E118: 15 | F118: 0 | G118: 0 | H118: 0 | I118: 1 | J118: 0 | K118: 1 | L118: 13
A119: Triennale | B119: D.M. 270/04 | C119: SCIENZE E GESTIONE DELLE ATTIVITA' MARITTIME (D.M.270/04) | D119: 81 | E119: 73 | F119: 0 | G119: 0 | H119: 0 | I119: 0 | J119: 1 | K119: 1 | L119: 71
C120: TOTALE SCIENZE MM. FF. NN. - TARANTO | D120: =SUM(D117:D119) -> 212 | E120: =SUM(E117:E119) -> 124 | F120: 1 | G120: 0.8064516129 | H120: 0 | I120: 3 | J120: 2 | K120: 2 | L120: 116
C122: TOTALE DI ATENEO | D122: =SUM(D120,D114,D109,D105,D99,D84,D75,D70,D65,D42,D37,D29,D22,D16,D8) -> 11632 | E122: =SUM(E120,E114,E109,E105,E99,E84,E75,E70,E65,E42,E37,E29,E22,E16,E8) -> 7530 | F122: =SUM(F120,F114,F109,F105,F99,F84,F75,F70,F65,F42,F37,F29,F22,F16,F8) -> 235 | G122: =F122/E122*100 -> 3.120849934 | H122: =SUM(H120,H114,H109,H105,H99,H84,H75,H70,H65,H42,H37,H29,H22,H16,H8) -> 38 | I122: =SUM(I120,I114,I109,I105,I99,I84,I75,I70,I65,I42,I37,I29,I22,I16,I8) -> 196 | J122: =SUM(J120,J114,J109,J105,J99,J84,J75,J70,J65,J42,J37,J29,J22,J16,J8) -> 211 | K122: =SUM(K120,K114,K109,K105,K99,K84,K75,K70,K65,K42,K37,K29,K22,K16,K8) -> 199 | L122: =SUM(L120,L114,L109,L105,L99,L84,L75,L70,L65,L42,L37,L29,L22,L16,L8) -> 6651
A123: (*) Il numero degli immatricolati estratto dal Centro Servizi Informatici riguarda gli studenti che si sono iscritti per la prima volta ad un corso di studio di Uniba. Non comprende coloro che negli anni precedenti sono stati iscritti ad altri corsi dell'ateneo, ma comprende coloro che negli anni precedenti sono stati iscritti ad altri atenei.
A124: Progetto di Ateneo "Sostegno studenti fuori corso e iscritti al II anno inattivi" - Processo: Analisi statistica dei dati sugli iscritti al II anno inattivi. Elaborazioni a cura del Gruppo statistico - Macro Area Controllo strategico, Analisi statistica e Programmazione
